Cogmind - Beta 16.1 *** ADVENTURER MODE // 2026.02.10 @ 17:24:20 Player: CometVoid Result: Destroyed by PG-6HX(R) with Subdweller Machine Gun Performance ------------- Evolutions (0) 0 Regions Visited (3) 600 Robots Destroyed (19) 95 Value Destroyed (361) 361 Prototype IDs (0) 0 Alien Tech Used (0) 0 Bonus (0) 0 TOTAL SCORE: 1056 Bonus ------- None Cogmind --------- Core Integrity 0/250 Matter 257/300 Energy 74/125 System Corruption 5% Temperature Cool (0) Movement Core (100) Ox1 Location -10/Subcaves Parts ------- > --- POWER (1) -------- Light Ion Engine > --- PROPULSION (2) --- (None) > --- UTILITY (2) ------ Signal Interpreter ECM Suite > --- WEAPON (2) ------- (None) > --- INVENTORY (5) ---- Seismic Detector Transport Network Coupler Peak State ------------ > --- POWER ------------ Light Nuclear Core > --- PROPULSION ------- Wheel Compact Wheel > --- UTILITY ---------- Huge Storage Unit Signal Interpreter > --- WEAPON ----------- Medium Laser Missile Launcher > --- INVENTORY -------- Light Ion Engine Light Ion Engine Light Treads Light Treads Aluminum Leg Flight Unit Flight Unit Flight Unit Flight Unit Large Storage Unit High-capacity Storage Unit Huge Storage Unit Advanced Weight Redist. System Advanced Visual Processing Unit Signal Interpreter Improved Terrain Scan Processor Seismic Detector Seismic Detector Transport Network Coupler ECM Suite ECM Suite ECM Suite Medium Laser Datajack Mining Laser [Rating: 14] Favorites ----------- Power Light Nuclear Core Engine Light Ion Engine Power Core Light Nuclear Core Propulsion Wheel Treads Light Treads Leg Aluminum Leg Wheel Wheel Flight Unit Flight Unit Utility Huge Storage Unit Device Seismic Detector Storage Huge Storage Unit Processor Signal Interpreter Weapon Medium Laser Energy Gun Medium Laser Ballistic Gun Light Assault Rifle Launcher Missile Launcher Build | -11 -10 -10 -10 ------- Run | Yrd Mat Min Sub Slots Evolved . | . . . . Power . | . . . . Propulsion . | . . . . Utility . | . . . . Weapon . | . . . . Parts Attached 24 | 8 5 5 6 Power 3 | 1 . 1 1 Engine 2 | 1 . . 1 Core 1 | . . 1 . Reactor . | . . . . Propulsion 12 | 3 3 2 4 Treads 1 | 1 . . . Leg 2 | 2 . . . Wheel 5 | . 3 2 . Hover . | . . . . Flight 4 | . . . 4 Utility 6 | 2 2 1 1 Device 2 | 1 . . 1 Storage 3 | 1 2 . . Processor 1 | . . 1 . Hackware . | . . . . Protection . | . . . . Artifact . | . . . . Weapon 3 | 2 . 1 . Energy Gun 1 | 1 . . . Energy Cannon . | . . . . Ballistic Gun 1 | 1 . . . Ballistic Cannon . | . . . . Launcher 1 | . . 1 . Special Weapon . | . . . . Impact Weapon . | . . . . Slashing Weapon . | . . . . Piercing Weapon . | . . . . Special Melee Weapon . | . . . . Unidentified Prototypes . | . . . . Parts Lost 11 | . 1 1 9 Power 1 | . . . 1 Propulsion 8 | . 1 1 6 Utility . | . . . . Weapon 2 | . . . 2 Highest Loss Streak 9 | . 1 1 9 To Critical Strikes . | . . . . Average Backups 22 | 4 20 24 14 Power 1 | . 1 2 1 Propulsion 7 | 2 7 8 3 Utility 9 | . 7 11 7 Weapon 2 | 1 2 2 1 Tool/Special . | . . . . Unused Backups 24 | . 2 6 16 Power 1 | . . . 1 Propulsion 3 | . 1 1 1 Utility 16 | . 1 4 11 Weapon 3 | . . 1 2 Tool/Special 1 | . . . 1 Average Slot Usage (%) 98 | . 99 99 67 Engine 4 | . 14 . 6 Core 9 | . . 13 6 Wheel 26 | . 26 27 12 Device 9 | . 14 7 4 Storage 13 | . 14 14 8 Processor 4 | . . 6 14 Energy Gun 13 | . 14 14 8 Ballistic Gun 8 | . 14 6 . Launcher 5 | . . 7 6 Peak Build Rating 14 | 7 9 14 14 Average Rating 10 | 3 8 12 8 On Entrance 7 | . 7 9 14 Avg Prop Armor Cover (%) 10 | . . . 10 Naked Turns . | . . . . Heaviest Build 94 | 12 87 94 93 Greatest Support 26 | 20 26 26 20 Greatest Overweight (x) 9 | . 8 5 9 Average Overweight (x) 2 | . 2 3 2 Largest Inventory Capacity 25 | 8 25 25 25 Average Capacity 23 | 6 23 25 15 Most Carried 25 | 8 25 25 25 Average Carried 22 | 4 21 24 14 Final Capacity 25 | 8 25 25 5 Final Carried 25 | 6 25 25 2 Class Distribution -------------------- 100% | Mutant Dominant Class ---------------- Mutant | -10/Materials Mutant | -10/Mines Mutant | -10/Subcaves Resources | -11 -10 -10 -10 ----------- Run | Yrd Mat Min Sub Matter Collected 476 | 69 129 270 8 Remotely . | . . . . Salvage Created 611 | 13 228 336 34 Parts 47 | 5 15 23 4 Haulers Intercepted . | . . . . Recyclers Shooed 4 | . 3 1 . Parts Field Recycled . | . . . . Retrieved Matter . | . . . . Parts Self-Destructed . | . . . . Prevented . | . . . . Parts Restored . | . . . . Kills | -11 -10 -10 -10 ------- Run | Yrd Mat Min Sub Combat Hostiles Destroyed 11 | . 4 6 1 Guns 10 | . 4 6 . AOE 1 | . . . 1 Classes Destroyed 8 | 1 5 1 1 Worker 2 | . 1 1 . Builder 1 | . . 1 . Tunneler 2 | 1 . 1 . Recycler 2 | . 1 1 . Watcher 1 | . 1 . . Swarmer 5 | . 3 2 . Grunt 5 | . 1 4 . Subdweller 1 | . . . 1 Best Kill Streak 3 | 1 3 2 3 Combat Bots Only 3 | . 3 2 1 Max Kills in Single Turn 1 | 1 1 1 1 Gunslinging . | . . . . Exploded 1 | . . . 1 Melee . | . . . . Uniques/NPCs Destroyed . | . . . . Combat | -11 -10 -10 -10 -------- Run | Yrd Mat Min Sub Hostile Shots Fired 73 | . 14 24 35 Missed 17 | . 3 7 7 Hits 56 | . 11 17 28 Projectile 56 | . 11 17 28 Damage Taken 822 | . 91 225 506 Core 264 | . 11 52 201 Absorbed by Shields . | . . . . Ignored by Resistances 227 | . 28 59 140 Core Remaining (%) 100 | 100 . . . Volleys Fired 57 | 1 20 34 2 Largest 2 | 2 2 2 2 Hottest 86 | 70 70 86 86 Shots Fired 106 | 2 40 60 4 Gun 103 | 2 40 59 2 Cannon . | . . . . Launcher 3 | . . 1 2 Special . | . . . . Kinetic 46 | 1 20 25 . Thermal 57 | 1 20 34 2 Explosive 3 | . . 1 2 Electromagnetic . | . . . . Robot Hit Streak 34 | 1 16 34 4 Robot Miss Streak 4 | . 2 4 . Penetration Max . | . . . . Secondary Targets 2 | . 1 1 . Max Gunslinging Chain 1 | . 1 1 . Shots Hit Robots 77 | 1 31 43 2 Core Hits 37 | 1 12 21 3 Critical Kills . | . . . . Critical Parts Destroyed 1 | . . 1 . Critical Strikes 2 | . 1 1 . Burn 1 | . 1 . . Destroy 1 | . . 1 . Melee Attacks . | . . . . Impact . | . . . . Slashing . | . . . . Piercing . | . . . . Sneak Attacks . | . . . . Combat Hostiles . | . . . . Follow-up Attacks . | . . . . Damage Inflicted 1152 | 10 325 554 263 Guns 807 | 10 325 447 25 Cannons . | . . . . Explosions 286 | . . 48 238 Melee . | . . . . Ramming 59 | . . 59 . Kinetic 268 | 10 123 135 . Thermal 539 | . 202 312 25 Explosive 286 | . . 48 238 Electromagnetic . | . . . . Impact . | . . . . Slashing . | . . . . Piercing . | . . . . Highest Corruption 5 | . 1 5 5 Average Corruption 1 | . 1 1 5 Corruption Purged . | . . . . Corruption Blocked . | . . . . Effects 23 | . 4 16 3 Message Errors 9 | . 1 6 2 Matter Fused 4 | . . 4 . Heat Flow Errors 2 | . 1 1 . Energy Discharges 6 | . 2 3 1 Data Loss (minor) 1 | . . 1 . Data Loss (major) 1 | . . 1 . Overload Shots . | . . . . Overflow Damage . | . . . . Projectiles . | . . . . Explosions . | . . . . Melee . | . . . . Knockbacks . | . . . . Impact . | . . . . Kinetic . | . . . . Secondary . | . . . . Self-Inflicted Damage 71 | . . 71 . Shots 1 | . . 1 . Rammed 6 | . . 6 . Targets Rammed 6 | . . 6 . Kicked . | . . . . Crushed . | . . . . Highest Temperature 266 | 30 233 266 . Average Temperature 69 | 18 51 82 . Received Heat Transfer 180 | . 27 90 63 Siege Activations . | . . . . Martial Activations . | . . . . Shielding Activations . | . . . . Robots Disrupted . | . . . . Combat Hostiles . | . . . . Robots Corrupted . | . . . . Combat Hostiles . | . . . . Parts Fried . | . . . . Impact Corruptions . | . . . . Robots Melted . | . . . . Combat Hostiles . | . . . . Parts Melted 1 | . 1 . . Heat Transferred 1665 | . 666 925 74 Parts Sabotaged . | . . . . Parts Stolen . | . . . . Parts Stripped . | . . . . Power Chain Reactions . | . . . . Alert | -11 -10 -10 -10 ------- Run | Yrd Mat Min Sub Maximum Alert Level . | . . . . Low Security (%) 100 | 100 100 100 . Level 1 . | . . . . Level 2 . | . . . . Level 3 . | . . . . Level 4 . | . . . . Level 5 . | . . . . High Security . | . . . . Max Security . | . . . . Peak Influence 72 | 5 72 50 . Initial . | . . . . Average 8 | . 21 4 . Influence Increases 347 | 5 180 162 . Destroy 0b10 Robot/C 200 | . 80 120 . Destroy 0b10 Robot/NC 40 | 5 15 20 . Destroy Leader 32 | . 22 10 . Successful Hack 18 | . 18 . . Destroy Structure 12 | . . 12 . Lose Combat Pursuer 45 | . 45 . . Influence Decreases 347 | 5 180 162 . Time Decay 337 | 5 170 162 . Lost Part 10 | . 10 . . Squads Dispatched 1 | . . 1 . Investigation 1 | . . 1 . Extermination . | . . . . Reinforcement . | . . . . Assault . | . . . . Garrison . | . . . . Intercept . | . . . . Searches Triggered . | . . . . Construction Impeded . | . . . . Haulers Reinforced . | . . . . Active Scanning Responses . | . . . . Cargo Convoy Interrupts . | . . . . Stealth | -11 -10 -10 -10 --------- Run | Yrd Mat Min Sub Distress Signals . | . . . . Communications Jammed . | . . . . Distress Signals . | . . . . Times Spotted 18 | . 9 5 4 Peak Tracking Total 4 | . 3 3 4 Tactical Retreats 2 | . 2 . . Traps | -11 -10 -10 -10 ------- Run | Yrd Mat Min Sub Traps Triggered . | . . . . Indirectly . | . . . . Trap Hack Attempts . | . . . . Triggered . | . . . . Disarmed . | . . . . Reprogrammed . | . . . . Reused . | . . . . Traps Extracted . | . . . . Installed . | . . . . Triggered . | . . . . Machines | -11 -10 -10 -10 ---------- Run | Yrd Mat Min Sub Machines Disabled . | . . . . Max in Single Turn . | . . . . Machines Repaired . | . . . . Machines Dismantled . | . . . . Machines Sabotaged . | . . . . Overloaded Fab Kills . | . . . . Hacking | -11 -10 -10 -10 --------- Run | Yrd Mat Min Sub Machines Accessed 5 | . 4 1 . Terminals 4 | . 4 . . Fabricators . | . . . . Repair Stations . | . . . . Recycling Units . | . . . . Scanalyzers . | . . . . Garrison Access . | . . . . Total Hacks 12 | . 11 1 . Successful 8 | . 7 1 . Failed 4 | . 4 . . Catastrophic 2 | . 2 . . Database Lockouts . | . . . . Manual 5 | . 5 . . Terminals 11 | . 11 . . Fabricators . | . . . . Repair Stations . | . . . . Recycling Units . | . . . . Scanalyzers . | . . . . Garrison Access . | . . . . Terminal Hacks 8 | . 7 1 . Open Door 1 | . . 1 . Branch Access Points 1 | . 1 . . Terminal Index 1 | . 1 . . Locate Traps 1 | . 1 . . Dispatch Records 1 | . 1 . . Patrol Status 1 | . 1 . . Hauler Manifests 1 | . 1 . . Registered Components 1 | . 1 . . Fabricator Hacks . | . . . . Repair Station Hacks . | . . . . Recycling Unit Hacks . | . . . . Scanalyzer . | . . . . Garrison Access Hacks . | . . . . Unauthorized Hacks . | . . . . Terminals . | . . . . Fabricators . | . . . . Repair Stations . | . . . . Recycling Units . | . . . . Scanalyzers . | . . . . Garrison Access . | . . . . Data Cores Recovered . | . . . . Used . | . . . . Hacking Detections 3 | . 3 . . Full Trace Events 1 | . 1 . . Feedback Events 1 | . 1 . . Corruption 1 | . 1 . . Feedback Blocked . | . . . . Robot Schematics Acquired . | . . . . Robots Built . | . . . . Authchips . | . . . . Time . | . . . . Total Robot Build Rating . | . . . . Part Schematics Acquired . | . . . . Parts Built . | . . . . Authchips . | . . . . Time . | . . . . Total Part Build Rating . | . . . . Part Studies Acquired . | . . . . Parts Repaired . | . . . . Time . | . . . . Parts Recycled . | . . . . Recycled Matter . | . . . . Retrieved Matter . | . . . . Retrieved Components . | . . . . Parts Scanalyzed . | . . . . Part Schematics Acquired . | . . . . Parts Damaged . | . . . . Bothacking | -11 -10 -10 -10 ------------ Run | Yrd Mat Min Sub Used RIF Installer . | . . . . Robots Hacked . | . . . . Non-combat . | . . . . Combat . | . . . . Robot Hacks Applied . | . . . . Relay Couplers Released . | . . . . Fabnet Peak Effective % . | . . . . Robots Rewired . | . . . . Allies Hacked . | . . . . Hacks Repelled . | . . . . Allies | -11 -10 -10 -10 -------- Run | Yrd Mat Min Sub Total Allies 1 | . . 1 . Largest Group 1 | . . 1 . Highest-Rated Group 8 | . . 8 . Highest-Rated Ally 8 | . . 8 . Total Orders . | . . . . Ally Attacks 4 | . . 4 . Total Damage 22 | . . 22 . Kills . | . . . . Allies Corrupted . | . . . . Allies Melted . | . . . . Intel | -11 -10 -10 -10 ------- Run | Yrd Mat Min Sub Active Infowar (turns) 1259 | 36 509 690 24 Seismic 1235 | 36 509 690 . ECM 24 | . . . 24 Robot Analysis Total . | . . . . Derelict Logs Recovered 1 | . . 1 . Drone Launches . | . . . . Drone Recoveries . | . . . . Exploration | -11 -10 -10 -10 ------------- Run | Yrd Mat Min Sub Turns Passed 1951 | 114 509 1269 59 Spaces Moved 1283 | 72 332 841 38 Core 23 | 3 . . 20 Treads 19 | 19 . . . Legs 54 | 50 4 . . Wheels 1180 | . 328 841 11 Hover . | . . . . Flight 7 | . . . 7 Fastest Speed 37 | 50 105 135 37 Average Speed 132 | 127 127 135 113 Slowest Speed 215 | 160 200 175 215 Overloaded Moves . | . . . . Propulsion Burnouts . | . . . . Robots Hopped . | . . . . Potential Cave-ins . | . . . . Cave-ins Triggered . | . . . . Exploration Rate (%) 42 | 4 62 97 6 Regions Visited 3 Branch Regions 2 Pre-discovered Areas 2 | . . 2 . Known Exits Taken 2 | . 1 1 . Unknown Exits Taken 1 | 1 . . . Scrap Searched 1 | . . 1 . Spaces Dug . | . . . . Terrain Destroyed 31 | . . 14 17 Melee . | . . . . Projectile . | . . . . AOE 31 | . . 14 17 Terrain Rammed . | . . . . Walls Destroyed . | . . . . Machines Disabled . | . . . . Actions | -11 -10 -10 -10 --------- Run | Yrd Mat Min Sub Total 1436 | 90 379 915 52 Wait 5 | . . 5 . Move 1280 | 71 331 840 38 Hop . | . . . . Pick Up 41 | 10 20 9 2 Fast Attach 7 | 3 1 3 . Attach 10 | 4 . . 6 Detach 1 | . . . 1 Swap 10 | 1 4 4 1 Drop 19 | . 3 14 2 Fire 57 | 1 20 34 2 Melee . | . . . . Ram 6 | . . 6 . Kick . | . . . . Crush . | . . . . Escape Stasis . | . . . . Rewire . | . . . . Trap . | . . . . Miscellaneous . | . . . . Route ------- -11/Scrapyard -10/Materials -10/Mines (discovered 3 exits: *Mat x2 / *Sub) -10/Subcaves History --------- Turn | Location | Event 37 | -11/Scrapyard | Discovered new exit (range 14) 115 | -11/Scrapyard | Entered Materials 162 | -10/Materials | Identified exit to Mines 319 | -10/Materials | Build established: Mutant 624 | -10/Materials | Entered Mines 655 | -10/Mines | Assisted by bots powering up and referring to "LRC-V3" 671 | -10/Mines | Met a Derelict bent on vengeance 703 | -10/Mines | Discovered new exit (range 8) 965 | -10/Mines | Learned location of Zion (-7) 1215 | -10/Mines | Met a Derelict shopkeep closing up shop 1276 | -10/Mines | Discovered new exit (range 7) 1296 | -10/Mines | Discovered new exit (range 7) 1303 | -10/Mines | Learned location of Storage (-7) 1322 | -10/Mines | Identified exit to Materials 1349 | -10/Mines | Identified exit to Subcaves 1893 | -10/Mines | Entered Subcaves 1894 | -10/Subcaves | Approached by a straggling Scientist 1895 | -10/Subcaves | Ambushed by Subdwellers from Twisted Machinery 1896 | -10/Subcaves | Ambushed by Subdwellers from Twisted Machinery 1913 | -10/Subcaves | Core integrity fell below 50% 1950 | -10/Subcaves | Core integrity fell below 20% 1952 | -10/Subcaves | Destroyed by PG-6HX(R) with Subdweller Machine Gun Last Messages --------------- was talking about a shortcut back to the UFD." 01900_ The unstable cave ceiling collapses. 01904_ Wheel destroyed. 01905_ &XGJ4CN5, 01928_ Dropped Flight Unit. 01928_ Acquired Flight Unit. 01929_ Dropped ECM Suite. 01930_ Acquired Flight Unit. 01935_ Flight Unit destroyed. 01942_ Acquired 8 matter. XM-GXQ(c): "I think it's somewhere northeast of here" 01944_ >N1JXWFZRA=Z>KUC2&B5T13DL6 01949_ Flight Unit destroyed. Map ----- +----------------------------------------------------+ | ??????????????????????????????????????? | | ??????????????????????????????????????? | | ??????????????????????????????????????? | | ??????????????????????????????????????? | | ??????????????????????????????????????? | | ??????????????????????????????????????? | | ??????????????????????????????????????? | | ??????????????????????????????????????? | | ??????????????????????????????????????? | | ??????????????????????????????????????? | | ??????????????????????????????????????? | | ???????????????? ???? ?????????????? | | ???????????????? u?# ????????????? | | ???????????????? "" ????????????? | | ???????????????# " ????????????? | | ??????????????? ????????????? | | ??????????????# ????????????? | | ?????????????? ????????????? | | ???????#$?????# #????????????? | | ????????$?????# ##???????????? | | ????????? ???## ? ###?????????? | | ?????????? ??# #??? ###???????? | | ?????????## ## #????# ##????### | | ?????????# #< ##???# #???## | | ?????????# ##?## #???# | | ?????????# @ ### !#?### | | ?????????# #<< R ###=#[ | | ???????????###< R R !/!*=! | | ?????????????# ### !!|!!! # | | ?????????????## #?# ##=!#! ## | | ??????????????# #?# %#########? | | ??????????????## ###?#####????????? | | ???????????????## ##????????????????? | | ????????????????#c #?????????????????? | | ????????????????# #????????????????? | | ???????????????# #???????????????? | | ??????????????# #???????????????? | | ??????????????# % ##???????????????? | | ??????????????## #????????????????? | | ???????????????### ##????????????????? | | ?????????????????# ?????????????????? | | ????????????????? % #?????????????????? | | ?????????????????# ?????????????????? | | ?????????????????# ?????????????????? | | ?????????????????# ?????????????????? | | ?????????????????? #?????????????????? | | ?????????????????? ??????????????????? | | ?????????????????? ??????????????????? | | ??????????????????????????????????????? | | ??????????????????????????????????????? | +----------------------------------------------------+ Best States ------------- Heat Dissipation 25 Energy Generation 14 Energy Capacity 160 Matter Stores 300 Matter Capacity 300 Sight Range 16 Terrain Scan Density 10 ECM Strength 1 Resistance: KI 20 Resistance: TH 20 Resistance: EX 20 Resistance: EM 20 Resistance: I 20 Resistance: S 20 Resistance: P 20 Evasion (%) 55 Recoil Reduction 1 Offensive Hacking 10 Item Schematics ----------------- None Robot Schematics ------------------ None Fabricated ------------ Nothing Repaired ---------- Nothing Studied --------- None Alien Tech Used ----------------- None Achievements -------------- None Challenges ------------ None Game ------ Seed ReflexChromionDisintegrator Manual? 0 Play Time 00:27:31 Cumulative 14.5 hours Start 2026.02.10 @ 16:57:30 End 2026.02.10 @ 17:24:20 Sessions 1 Manual Loads 0 Difficulty Adventurer Special Mode None Game No. 15 Rogue 12 Adventurer 3 Explorer 0 Win Type - Total 0 Types 0/0/0/0/0/0/0/0/0/0 Lore% 7 Gallery% 13 Achievement% 15 Wizard Run 0 Options --------- Layout 0 ASCII 0 Keyboard 0 Movement Arrows Keybinds 0 Fullscreen 2 Font 32/CogWide Map View 78x50 Zoom Use 0% Tactical HUD 1 Map Filters NONE Filters NONE Steam 1 RUN: f4c5b9ca-7bb7-41e7-8f5a-2db3ff1e45fa